bitfinex/quotes_BTCUSD_20250802
["timestamp","ask_amount","ask_price","bid_price","bid_amount"]
[1754149076329,0.34219467,113260.0,113250.0,0.50724823]
[1754149076535,0.34219467,113260.0,113250.0,0.51550823]
[1754149076739,0.34008467,113260.0,113250.0,0.51550823]
[1754149076974,0.34008467,113260.0,113250.0,0.56708305]
[1754149078044,0.34008467,113260.0,113250.0,0.51550823]
[1754149078253,0.34008467,113260.0,113250.0,0.51250823]
[1754149078475,0.34008467,113260.0,113250.0,0.51350823]
[1754149078687,0.34008467,113260.0,113250.0,0.37382823]
[1754149078900,0.34008467,113260.0,113250.0,0.51350823]
[1754149079108,0.34008467,113260.0,113250.0,0.37282823]
[1754149079331,0.34,113240.0,113230.0,0.03662]
[1754149079581,0.34533,113240.0,113230.0,0.50430823]
[1754149079803,0.34211,113240.0,113230.0,0.50635823]
[1754149080452,0.00211,113240.0,113230.0,0.50635823]
[1754149080930,0.00211,113240.0,113230.0,0.36667823]
[1754149081175,0.00211,113240.0,113230.0,0.58979888]
[1754149081374,0.34211,113240.0,113230.0,0.59300888]
[1754149081804,0.36994066,113240.0,113230.0,0.51356823]
[1754149082015,0.36994066,113240.0,113230.0,0.50956823]
[1754149082234,0.36994066,113240.0,113230.0,0.18456]
[1754149082462,0.36994066,113240.0,113230.0,0.51256823]
[1754149082670,0.36994066,113240.0,113230.0,0.18356]
[1754149082878,0.36994066,113240.0,113230.0,0.51156823]
[1754149083088,0.02783066,113240.0,113230.0,0.6149789]
[1754149083297,0.41012801,113260.0,113240.0,0.01744902]
[1754149083298,0.34008467,113260.0,113240.0,0.01744902]
[1754149083520,0.34219467,113260.0,113250.0,0.46973823]
[1754149083747,0.34219467,113260.0,113250.0,0.50635823]
[1754149084188,0.00219467,113260.0,113250.0,0.50635823]
[1754149084412,0.00541467,113260.0,113250.0,0.50635823]
[1754149084629,0.00219467,113260.0,113250.0,0.17835]
[1754149084840,0.00219467,113260.0,113250.0,0.50635823]
[1754149085271,0.02906059,113260.0,113250.0,0.50635823]
[1754149085700,0.00219467,113260.0,113250.0,0.50635823]
[1754149087248,0.00219467,113260.0,113250.0,0.17835]
[1754149087932,0.00219467,113260.0,113250.0,0.50635823]
[1754149089224,0.02978823,113260.0,113250.0,0.50635823]
[1754149089439,0.00219467,113260.0,113250.0,0.50635823]
[1754149090701,0.00219467,113260.0,113250.0,0.17835]
[1754149091098,0.00219467,113260.0,113250.0,0.50635823]
[1754149092537,0.00219467,113260.0,113250.0,0.17835]
[1754149092744,0.00219467,113260.0,113250.0,0.50956823]
[1754149092900,8.467e-05,113260.0,113250.0,0.50956823]
[1754149093102,0.02664296,113260.0,113250.0,0.50956823]
[1754149093308,0.34008467,113260.0,113250.0,0.56226996]
[1754149094526,0.34008467,113260.0,113250.0,0.56230996]
[1754149095623,0.36669251,113260.0,113250.0,0.56230996]
[1754149096283,0.36669251,113260.0,113250.0,0.90776721]
[1754149097307,0.36669251,113260.0,113250.0,0.57975898]
[1754149098601,0.36669251,113260.0,113250.0,0.90776721]
[1754149099928,0.02669251,113260.0,113250.0,0.90776721]
[1754149100137,0.02669251,113260.0,113250.0,0.9919671]
[1754149101007,0.02669251,113260.0,113250.0,0.9939671]
[1754149101266,8.467e-05,113260.0,113250.0,0.9939671]
[1754149101716,8.467e-05,113260.0,113250.0,0.8542871]
[1754149101922,8.467e-05,113260.0,113250.0,0.9942071]
[1754149102761,8.467e-05,113260.0,113250.0,0.8542871]
[1754149102982,8.467e-05,113260.0,113250.0,0.19827064]
[1754149103196,8.467e-05,113260.0,113250.0,0.61361714]
[1754149103407,0.02715638,113270.0,113260.0,0.34545725]
[1754149103619,0.02926638,113270.0,113260.0,0.34763435]
[1754149103845,0.00211,113270.0,113260.0,0.38425435]
[1754149104475,0.59599093,113280.0,113260.0,0.38746435]
[1754149104686,0.43599093,113280.0,113270.0,0.52528725]
[1754149104892,0.43599093,113280.0,113270.0,0.52738725]
[1754149105323,0.46476755,113280.0,113270.0,0.52738725]
[1754149105541,0.39257421,113280.0,113270.0,0.19937902]
[1754149105762,0.36662662,113280.0,113270.0,0.52738725]
[1754149105972,0.36662662,113280.0,113270.0,0.58865867]
[1754149110004,1.247416,113290.0,113280.0,0.01744902]
[1754149110228,0.34,113290.0,113280.0,0.52748725]
[1754149111371,0.341,113290.0,113280.0,0.52748725]
[1754149111613,0.341,113290.0,113280.0,0.54337521]
[1754149112044,0.341,113290.0,113280.0,0.21536698]
[1754149112260,0.341,113290.0,113280.0,0.54337521]
[1754149112714,0.36766946,113290.0,113280.0,0.54337521]
[1754149113174,0.36766946,113290.0,113280.0,0.54437521]
[1754149113392,0.36966946,113290.0,113280.0,0.54437521]
[1754149113815,0.36766946,113290.0,113280.0,0.54437521]
[1754149114234,0.36766946,113290.0,113280.0,0.54537521]
[1754149117081,0.36766946,113290.0,113280.0,0.54541521]
[1754149119161,0.36766946,113290.0,113280.0,0.21740698]
[1754149119363,0.36766946,113290.0,113280.0,0.54541521]
[1754149121389,0.36766946,113290.0,113280.0,0.54553521]
[1754149123294,0.36766946,113290.0,113280.0,0.21752698]
[1754149123515,0.36766946,113290.0,113280.0,0.54553521]
[1754149128832,0.02766946,113290.0,113280.0,0.87354344]
[1754149129070,0.02766946,113290.0,113280.0,0.95774333]
[1754149129314,0.907416,113300.0,113280.0,0.95774333]
[1754149129550,0.907416,113300.0,113290.0,0.34766397]
[1754149129804,0.34,113300.0,113290.0,0.47152714]
[1754149130315,0.3670576,113300.0,113290.0,0.47152714]
[1754149133409,0.3692076,113300.0,113290.0,0.47152714]
[1754149133623,0.3692076,113300.0,113290.0,0.46850714]
[1754149133848,0.3692076,113300.0,113290.0,0.60842714]
[1754149134078,0.3692076,113300.0,113290.0,0.61144714]
[1754149136952,0.3692076,113300.0,113290.0,0.28343891]
[1754149137154,0.3692076,113300.0,113290.0,0.52724725]
[1754149137371,0.3692076,113300.0,113290.0,0.38732725]
[1754149137587,0.3692076,113300.0,113290.0,0.52712725]
[1754149139761,0.3692076,113300.0,113290.0,0.38732725]
[1754149139977,0.3692076,113300.0,113290.0,0.52700725]
[1754149140206,0.3692076,113300.0,113290.0,0.61120714]
[1754149140440,0.3692076,113300.0,113290.0,0.47152714]
[1754149140681,0.3692076,113300.0,113290.0,0.61120714]
[1754149141166,0.3692076,113300.0,113290.0,0.47152714]
[1754149141401,0.3692076,113300.0,113290.0,0.61120714]
[1754149141641,0.3692076,113300.0,113290.0,0.47152714]
[1754149141904,0.3692076,113300.0,113290.0,0.61120714]
[1754149142556,0.0270576,113300.0,113290.0,0.69540703]
[1754149142768,0.03061,113320.0,113300.0,0.01744902]
[1754149142984,0.00308,113320.0,113310.0,0.46768823]
[1754149143203,0.00504,113320.0,113310.0,0.50400823]
[1754149143417,0.00504,113320.0,113310.0,0.176]
[1754149143652,0.02819871,113320.0,113310.0,0.176]
[1754149144094,0.00804,113320.0,113310.0,0.176]
[1754149144313,0.01004,113320.0,113310.0,0.176]
[1754149144544,0.00704,113320.0,113310.0,0.176]
[1754149144760,0.01004,113320.0,113310.0,0.176]
[1754149145415,0.01004,113320.0,113310.0,0.22843873]
[1754149146141,0.907416,113300.0,113280.0,0.065832]
[1754149146374,0.34,113300.0,113290.0,0.13968]
[1754149146579,0.37257,113300.0,113290.0,0.13968]
[1754149146794,0.37257,113300.0,113280.0,0.36436823]
[1754149147002,0.36949,113300.0,113290.0,0.13968]
[1754149147759,0.36949,113300.0,113280.0,0.40284296]
[1754149148050,0.37257,113300.0,113280.0,0.40284296]
[1754149148486,0.36949,113300.0,113290.0,0.13968]
[1754149148933,0.37257,113300.0,113290.0,0.13968]
[1754149152558,0.37257,113300.0,113280.0,0.40284296]
[1754149152812,0.03257,113300.0,113290.0,0.1939323]
[1754149153486,0.00504,113300.0,113290.0,0.1939323]
[1754149153752,0.00504,113300.0,113290.0,0.2302523]
[1754149154013,0.00504,113300.0,113290.0,0.0542523]
[1754149154227,0.03355,113300.0,113290.0,0.13968]
[1754149154860,0.03355,113300.0,113280.0,0.36729823]
[1754149155067,0.03355,113300.0,113290.0,0.13968]
[1754149155995,0.00504,113300.0,113290.0,0.176]
[1754149157109,0.00504,113300.0,113290.0,0.03632]
[1754149157653,0.00504,113300.0,113290.0,0.176]
[1754149157840,0.00504,113300.0,113290.0,0.03632]
[1754149158077,0.00504,113300.0,113290.0,0.176]
[1754149158288,0.34196,113300.0,113290.0,0.176]
[1754149158534,0.34196,113300.0,113290.0,0.22878782]
[1754149158979,0.34196,113300.0,113290.0,0.17809]
[1754149159188,0.00196,113300.0,113290.0,0.17809]
[1754149159841,0.00196,113300.0,113290.0,0.50609823]
[1754149160507,0.00196,113300.0,113290.0,0.50902823]
[1754149162858,0.00196,113300.0,113290.0,0.18102]
[1754149163070,0.00196,113300.0,113290.0,0.50902823]
[1754149163437,0.00196,113300.0,113290.0,0.42025505]
[1754149163640,0.00196,113300.0,113290.0,0.55993505]
[1754149164344,1.247416,113300.0,113290.0,0.55993505]
[1754149164555,0.34,113300.0,113290.0,0.43770407]
[1754149164773,0.34,113300.0,113290.0,0.57734407]
[1754149167581,0.34,113300.0,113290.0,0.43770407]
[1754149167809,0.34,113300.0,113290.0,0.57734407]
[1754149169486,0.34,113300.0,113290.0,0.24933584]
[1754149169714,0.34,113300.0,113290.0,0.43770407]
[1754149169931,0.34,113300.0,113290.0,0.10969584]
[1754149170172,0.34202,113300.0,113290.0,0.52643725]
[1754149170390,0.34202,113300.0,113290.0,0.38679725]
[1754149170596,0.34526,113300.0,113290.0,0.19340902]
[1754149170778,0.34526,113300.0,113290.0,0.52141725]
[1754149171377,0.34202,113300.0,113290.0,0.52141725]
[1754149171614,0.34202,113300.0,113290.0,0.57386198]
[1754149171746,0.34202,113300.0,113290.0,0.57590198]
[1754149171957,0.34202,113300.0,113290.0,0.57889198]
[1754149176691,0.3733,113300.0,113280.0,4e-05]
[1754149176901,0.37006,113300.0,113290.0,0.13964]
[1754149177544,0.3733,113300.0,113290.0,0.13964]
[1754149177783,0.34,113290.0,113280.0,0.03393]
[1754149177983,0.34202,113290.0,113280.0,0.46764823]
[1754149178195,0.3733,113290.0,113280.0,0.46764823]
[1754149178415,0.3733,113290.0,113280.0,0.50153823]
[1754149178622,0.34526,113290.0,113280.0,0.50153823]
[1754149178834,0.34526,113290.0,113280.0,0.03393]
[1754149179042,0.34526,113290.0,113280.0,0.17353]
[1754149179909,0.34526,113290.0,113280.0,0.17553]
[1754149180560,0.34526,113290.0,113280.0,0.053782]
[1754149180770,0.34526,113290.0,113280.0,0.193382]
[1754149182467,0.00202,113290.0,113280.0,0.52343023]
[1754149182672,0.00202,113290.0,113280.0,0.38682023]
[1754149182922,0.00202,113290.0,113280.0,0.198412]
[1754149183147,0.00202,113290.0,113280.0,0.50557823]
[1754149184038,0.00526,113290.0,113280.0,0.50353823]
[1754149184292,0.00526,113290.0,113280.0,0.36393823]
[1754149184504,0.00526,113290.0,113280.0,0.50353823]
[1754149184726,0.00202,113290.0,113280.0,0.50353823]
[1754149185043,0.00202,113290.0,113280.0,0.50557823]
[1754149186085,0.00202,113290.0,113280.0,0.55643505]
[1754149186331,0.00526,113290.0,113280.0,0.41479505]
[1754149186554,0.34526,113290.0,113280.0,0.50353823]
[1754149186769,0.34526,113290.0,113280.0,0.17553]
[1754149187155,1.252676,113290.0,113280.0,0.17553]
[1754149187382,1.249436,113290.0,113280.0,0.22822282]
[1754149187675,1.249436,113290.0,113280.0,0.23121282]
[1754149187904,1.249436,113290.0,113280.0,0.55922105]
[1754149188128,0.34202,113290.0,113280.0,0.55922105]
[1754149188773,0.34,113290.0,113280.0,0.55922105]
[1754149193076,0.34,113290.0,113280.0,0.41962105]
[1754149193279,0.34,113290.0,113280.0,0.55918105]
[1754149193718,0.34,113290.0,113280.0,0.23117282]
[1754149193927,0.34,113290.0,113280.0,0.50852823]
[1754149194931,0.34,113290.0,113280.0,0.18052]
[1754149195120,0.34203,113290.0,113280.0,0.50852823]
[1754149196695,0.34203,113290.0,113280.0,0.18052]
[1754149197559,0.35585015,113290.0,113280.0,0.18052]
[1754149197780,0.35883015,113290.0,113280.0,0.22634282]
[1754149198004,0.01883015,113290.0,113280.0,0.22634282]
[1754149198451,0.01883015,113290.0,113280.0,0.08678282]
[1754149198673,0.95299615,113290.0,113280.0,0.1416]
[1754149199318,0.92624615,113290.0,113280.0,0.17793]
[1754149200232,0.912426,113290.0,113280.0,0.17793]
[1754149203131,0.92624637,113290.0,113280.0,0.17793]
[1754149203803,0.912426,113290.0,113280.0,0.17793]
[1754149206037,1.252426,113290.0,113280.0,0.17793]
[1754149206881,1.26624637,113290.0,113280.0,0.17793]
[1754149207792,0.35883037,113290.0,113280.0,0.17793]
[1754149208230,1.26624637,113290.0,113280.0,0.17793]
[1754149208617,1.26624637,113290.0,113280.0,0.17789]
[1754149209262,0.35585037,113290.0,113280.0,0.18005]
[1754149209486,0.35585037,113290.0,113280.0,0.18313]
[1754149209706,0.35585037,113290.0,113280.0,0.51113823]
[1754149210572,0.35382037,113290.0,113280.0,0.9077093]
[1754149210793,0.35382037,113290.0,113280.0,0.57970107]
[1754149211504,0.35382037,113290.0,113280.0,0.11217284]
[1754149211712,0.35382037,113290.0,113280.0,0.52858725]
[1754149211928,0.35382037,113290.0,113280.0,0.38906725]
[1754149212147,0.35382037,113290.0,113280.0,0.52858725]
[1754149214509,0.35382037,113290.0,113280.0,0.38906725]
[1754149214784,0.35585037,113290.0,113280.0,0.20057902]
[1754149214951,0.35585037,113290.0,113280.0,0.52858725]
[1754149215160,0.35585037,113290.0,113280.0,0.58144597]
[1754149217003,0.35382037,113290.0,113280.0,0.58144597]
[1754149217881,0.35382037,113290.0,113280.0,0.25343774]
[1754149218079,0.35382037,113290.0,113280.0,0.52858725]
[1754149218944,0.35382037,113290.0,113280.0,0.52854725]
[1754149219570,0.35382037,113290.0,113280.0,0.20053902]
[1754149219774,0.35382037,113290.0,113280.0,0.52854725]
[1754149220553,0.35382037,113290.0,113280.0,0.20053902]
[1754149220751,0.35382037,113290.0,113280.0,0.54860115]
[1754149222745,0.35382037,113290.0,113280.0,0.22059292]
[1754149222989,0.35382037,113290.0,113280.0,0.54860115]
[1754149226124,0.35382037,113290.0,113280.0,0.22059292]
[1754149226372,0.35382037,113290.0,113280.0,0.54860115]
[1754149227042,0.35382037,113290.0,113280.0,0.8765848]
[1754149227862,0.35382037,113290.0,113280.0,0.22059292]
[1754149228099,0.35382037,113290.0,113280.0,0.8765848]
[1754149229946,0.35382037,113290.0,113280.0,0.22059292]
[1754149230246,0.35382037,113290.0,113280.0,0.8765848]
[1754149233473,0.35382037,113290.0,113280.0,0.22059292]
[1754149233698,0.35382037,113290.0,113280.0,0.8765848]
[1754149234769,0.35382037,113290.0,113280.0,0.22059292]
[1754149234991,0.35382037,113290.0,113280.0,0.8765848]
[1754149235227,0.35587037,113290.0,113280.0,0.7371048]
[1754149235437,0.35587037,113290.0,113280.0,0.8765448]
[1754149235855,0.35587037,113290.0,113280.0,0.22055292]
[1754149236013,0.35587037,113290.0,113280.0,0.8765448]
[1754149236833,0.35587037,113290.0,113280.0,0.8564909]
[1754149240677,0.35382037,113290.0,113280.0,0.8564909]
[1754149244917,0.34,113290.0,113280.0,0.8564909]
[1754149245123,0.34,113290.0,113280.0,0.20049902]
[1754149245332,0.34,113290.0,113280.0,0.8564909]
[1754149245608,0.34205,113290.0,113280.0,0.94065079]
[1754149247713,0.35586998,113290.0,113280.0,0.94065079]
[1754149249501,0.35381998,113290.0,113280.0,0.94065079]
[1754149252069,0.35887998,113290.0,113280.0,0.00204]
[1754149252293,1.62146192,113290.0,113280.0,0.00204]
[1754149252509,1.64424974,113290.0,113280.0,0.14144]
[1754149252739,1.65253616,113290.0,113280.0,0.14144]
[1754149252956,1.32454022,113290.0,113280.0,0.14144]
[1754149253239,1.91326892,113290.0,113280.0,4e-05]
[1754149253468,2.24126486,113290.0,113280.0,0.13944]
[1754149253674,1.72291086,113290.0,113280.0,0.13944]
[1754149253894,1.88138829,113290.0,113280.0,4e-05]
[1754149254129,2.05792637,113290.0,113280.0,4e-05]
[1754149254360,2.38592231,113290.0,113280.0,4e-05]
[1754149254791,2.06017032,113290.0,113280.0,4e-05]
[1754149255628,1.88463224,113290.0,113280.0,4e-05]
[1754149256082,1.88363224,113290.0,113280.0,4e-05]
[1754149256514,1.88557666,113290.0,113280.0,4e-05]
[1754149256727,1.89740082,113290.0,113280.0,4e-05]
[1754149256965,1.56916093,113290.0,113280.0,4e-05]
[1754149257180,1.89740082,113290.0,113280.0,4e-05]
[1754149257613,1.89940082,113290.0,113280.0,4e-05]
[1754149257814,0.99198482,113290.0,113280.0,4e-05]
[1754149258027,1.89940082,113290.0,113280.0,4e-05]
[1754149258839,1.92595882,113290.0,113280.0,4e-05]
[1754149259512,1.84175893,113290.0,113280.0,4e-05]
[1754149259963,1.51351904,113290.0,113280.0,4e-05]
[1754149260190,1.8226815,113290.0,113280.0,4e-05]
[1754149260421,1.84168263,113290.0,113280.0,4e-05]
[1754149260643,1.8226815,113290.0,113280.0,4e-05]
[1754149260838,1.90688139,113290.0,113280.0,4e-05]
[1754149261128,1.9258825,113290.0,113280.0,4e-05]
[1754149261541,1.90688139,113290.0,113280.0,4e-05]
[1754149261790,1.90685825,113290.0,113280.0,4e-05]
[1754149264094,1.89303409,113290.0,113280.0,4e-05]
[1754149264565,0.98561809,113290.0,113280.0,4e-05]
[1754149264793,1.89302235,113290.0,113280.0,4e-05]
[1754149265263,1.56478246,113290.0,113280.0,4e-05]
[1754149265498,1.89302235,113290.0,113280.0,4e-05]
[1754149266451,1.91200696,113290.0,113280.0,4e-05]
[1754149268252,1.91196867,113290.0,113280.0,4e-05]
[1754149268487,1.91196815,113290.0,113280.0,4e-05]
[1754149270384,1.92579203,113290.0,113280.0,4e-05]
[1754149273483,1.59755214,113290.0,113280.0,4e-05]
[1754149273701,1.92579203,113290.0,113280.0,4e-05]
[1754149274161,1.84159214,113290.0,113280.0,4e-05]
[1754149274615,1.82776826,113290.0,113280.0,4e-05]
[1754149275900,0.92035226,113290.0,113280.0,4e-05]
[1754149276388,1.82776826,113290.0,113280.0,4e-05]
[1754149277328,1.84159222,113290.0,113280.0,4e-05]
[1754149277564,1.92579211,113290.0,113280.0,4e-05]
[1754149279006,2.25398534,113290.0,113280.0,4e-05]
[1754149280159,1.91398534,113290.0,113280.0,4e-05]
[1754149280843,1.58580432,113290.0,113280.0,4e-05]
[1754149281286,1.94166957,113290.0,113280.0,4e-05]
[1754149281524,2.11820765,113290.0,113280.0,4e-05]
[1754149282198,2.28167597,113290.0,113280.0,4e-05]
[1754149282827,2.45821405,113290.0,113280.0,4e-05]
[1754149283256,2.15369206,113290.0,113280.0,4e-05]
[1754149284176,1.97715398,113290.0,113280.0,4e-05]
[1754149284415,1.78297083,113290.0,113280.0,4e-05]
[1754149284630,1.50682884,113290.0,113280.0,0.04033]
[1754149284847,1.69576094,113290.0,113280.0,0.04033]
[1754149285117,1.79748687,113290.0,113280.0,0.04033]
[1754149285768,1.12718477,113290.0,113280.0,0.04033]
[1754149286205,1.46718477,113290.0,113280.0,0.04033]
[1754149286908,1.55138466,113290.0,113280.0,0.04033]
[1754149287127,1.87963676,113290.0,113280.0,0.04033]
[1754149287375,1.88158676,113290.0,113280.0,0.04033]
[1754149287633,1.55333466,113290.0,113280.0,0.04033]
[1754149287887,1.89540951,113290.0,113280.0,0.04033]
[1754149289106,1.56715741,113290.0,113280.0,0.04033]
[1754149289316,1.89540951,113290.0,113280.0,0.04033]
[1754149289832,1.81120962,113290.0,113280.0,0.04033]
[1754149290577,1.80925962,113290.0,113280.0,0.04033]
[1754149290815,1.80926982,113290.0,113280.0,0.04033]
[1754149291578,1.80935171,113290.0,113280.0,0.04033]
[1754149291819,1.80931171,113290.0,113280.0,0.04033]
[1754149292052,1.8935116,113290.0,113280.0,0.04033]
[1754149292336,0.9860956,113290.0,113280.0,0.04033]
[1754149292602,1.8954616,113290.0,113280.0,0.03717]
[1754149293062,1.8954616,113290.0,113280.0,0.04028]
[1754149293289,1.8689036,113290.0,113280.0,0.04028]
[1754149293505,1.86891694,113290.0,113280.0,0.04028]
[1754149294815,1.86891694,113290.0,113280.0,0.03514]
[1754149295031,1.87186694,113290.0,113280.0,0.03514]
[1754149295718,1.57016984,113290.0,113280.0,0.03514]
[1754149295923,1.89842194,113290.0,113280.0,0.03514]
[1754149298061,1.57016984,113290.0,113280.0,0.03514]
[1754149298267,1.89842194,113290.0,113280.0,0.03514]
[1754149300294,1.89547194,113290.0,113280.0,0.03514]
[1754149300664,1.81127205,113290.0,113280.0,0.04027]
[1754149300940,1.80932205,113290.0,113280.0,0.04027]
[1754149301147,0.90190605,113290.0,113280.0,0.04027]
[1754149301521,1.80932205,113290.0,113280.0,0.04027]
[1754149302208,1.48102995,113290.0,113280.0,0.04027]
[1754149302644,1.56522984,113290.0,113280.0,0.04027]
[1754149303086,1.53867484,113290.0,113280.0,0.04027]
[1754149303947,1.54062484,113290.0,113280.0,0.04027]
[1754149304166,1.86887694,113290.0,113280.0,0.04027]
[1754149304386,1.84989285,113290.0,113280.0,0.04027]
[1754149304810,1.8689582,113290.0,113280.0,0.04027]
[1754149305021,1.86895805,113290.0,113280.0,0.04027]
[1754149305442,1.89551305,113290.0,113280.0,0.04027]
[1754149306078,1.89551305,113290.0,113280.0,0.03716]
[1754149306738,1.75631305,113290.0,113280.0,0.03716]
[1754149306961,1.89547305,113290.0,113280.0,0.03716]
[1754149307776,1.75631305,113290.0,113280.0,0.03716]
[1754149307983,1.89547127,113290.0,113280.0,0.03716]
[1754149309023,1.89842127,113290.0,113280.0,0.03514]
[1754149309222,1.55442127,113290.0,113280.0,0.03514]
[1754149309434,1.53535607,113290.0,113280.0,0.03514]
[1754149310142,1.39619607,113290.0,113280.0,0.03514]
[1754149310322,1.53531607,113290.0,113280.0,0.03514]
[1754149311351,1.90135607,113290.0,113280.0,4e-05]
[1754149312004,1.92042648,113290.0,113280.0,4e-05]
[1754149313497,1.89438648,113290.0,113280.0,0.03549]
[1754149315238,0.98697048,113290.0,113280.0,0.03549]
[1754149315667,1.89438648,113290.0,113280.0,0.03549]
[1754149316696,1.89438763,113290.0,113280.0,0.03549]
[1754149317535,0.98697163,113290.0,113280.0,0.03549]
[1754149317742,1.89438763,113290.0,113280.0,0.03549]
[1754149318480,1.89143763,113290.0,113280.0,0.03549]
[1754149318694,1.80719774,113290.0,113280.0,0.04059]
[1754149319788,1.47894564,113290.0,113280.0,0.04059]
[1754149319997,1.45044064,113290.0,113280.0,0.04059]
[1754149320763,0.52395423,113290.0,113280.0,0.04059]
[1754149320966,1.45045948,113290.0,113280.0,0.04059]
[1754149321421,1.53465975,113290.0,113280.0,0.04059]
[1754149321565,1.5155705,113290.0,113280.0,0.04059]
[1754149321767,0.52395461,113290.0,113280.0,0.04059]
[1754149322019,1.43137061,113290.0,113280.0,0.04059]
[1754149322427,1.29229061,113290.0,113280.0,0.04059]
[1754149322641,1.43133061,113290.0,113280.0,0.04059]
[1754149323732,1.41750786,113290.0,113280.0,0.04059]
[1754149324151,1.41750204,113290.0,113280.0,0.04059]
[1754149324577,1.27846204,113290.0,113280.0,0.04059]
[1754149324786,0.03104604,113290.0,113280.0,0.3688421]
[1754149325004,1.046456,113290.0,113280.0,0.40572631]
[1754149325223,1.386456,113290.0,113280.0,0.40572631]
[1754149326302,1.386456,113290.0,113280.0,0.3688421]
[1754149327100,0.47904,113290.0,113280.0,0.3688421]
[1754149327305,1.386456,113290.0,113280.0,0.3688421]
[1754149328103,1.40027705,113290.0,113280.0,0.3688421]
[1754149328706,1.40027705,113290.0,113280.0,0.04059]
[1754149334385,1.40027705,113290.0,113280.0,0.3688421]
[1754149339292,1.40027705,113290.0,113280.0,0.04059]
[1754149339745,1.40027705,113290.0,113280.0,0.3688421]
[1754149342346,0.49286105,113290.0,113280.0,0.3688421]
[1754149342556,1.40027705,113290.0,113280.0,0.3688421]
[1754149342891,1.40027705,113290.0,113280.0,0.36864229]
[1754149345810,1.40027705,113290.0,113280.0,0.04059]
[1754149346228,1.40027705,113290.0,113280.0,0.36864229]
[1754149346443,1.40541705,113290.0,113280.0,0.03549]
[1754149346660,1.30541705,113290.0,113280.0,0.36354229]
[1754149349943,1.30541705,113290.0,113280.0,0.03549]
[1754149350156,1.30541705,113290.0,113280.0,0.36354229]
[1754149350994,1.38961694,113290.0,113280.0,0.03549]
[1754149351207,1.30541705,113290.0,113280.0,0.36354229]
[1754149351941,1.30240705,113290.0,113280.0,0.36553229]
[1754149352427,1.26336705,113290.0,113280.0,0.36553229]
[1754149352631,1.40216705,113290.0,113280.0,0.36553229]
[1754149354303,1.40837631,113290.0,113280.0,0.36553229]
[1754149356410,1.40837631,113290.0,113280.0,0.03748]
[1754149356567,1.40837631,113290.0,113280.0,0.36553229]
[1754149362674,1.26957631,113290.0,113280.0,0.36553229]
[1754149362886,0.49254105,113290.0,113280.0,0.41918552]
[1754149363077,0.49254105,113290.0,113280.0,0.69680458]
[1754149363278,0.35382105,113290.0,113280.0,0.69680458]
[1754149363919,0.34,113290.0,113280.0,0.69680458]
[1754149367286,0.907416,113300.0,113280.0,1.04230589]
[1754149367568,0.165228,113310.0,113290.0,0.8154536]
[1754149367802,0.54107796,113310.0,113300.0,0.69720458]
[1754149368211,0.55702727,113310.0,113300.0,0.36915229]
[1754149368416,0.39702727,113310.0,113300.0,0.36915229]
[1754149368854,1.30745327,113310.0,113300.0,0.36593229]
[1754149369261,1.44613327,113310.0,113300.0,0.36593229]
[1754149369455,1.41657527,113310.0,113300.0,0.36693229]
[1754149369592,1.40209332,113310.0,113300.0,0.36693229]
[1754149370397,1.40209332,113310.0,113300.0,0.03888]
[1754149370599,1.40209332,113310.0,113300.0,0.36693229]
[1754149370808,1.40209332,113310.0,113300.0,0.03888]
[1754149371191,1.40510332,113310.0,113300.0,0.03689]
[1754149371623,1.40209332,113310.0,113300.0,0.03789]
[1754149371834,1.7300562,113310.0,113300.0,0.03789]
[1754149372057,1.7330662,113310.0,113300.0,0.03789]
[1754149372469,1.7330662,113310.0,113300.0,0.002]
[1754149372674,2.18523074,113310.0,113300.0,0.002]
[1754149373119,1.26399543,113310.0,113300.0,0.002]
[1754149373334,2.19796143,113310.0,113300.0,0.002]
[1754149373555,2.21448816,113310.0,113300.0,0.002]
[1754149373768,2.23352898,113310.0,113300.0,0.002]
[1754149374430,1.57760322,113310.0,113300.0,0.001]
[1754149374628,2.23352898,113310.0,113300.0,0.001]
[1754149375052,0.34,113300.0,113280.0,4e-05]
[1754149375310,1.388026,113290.0,113280.0,0.03514]
[1754149375717,1.391066,113290.0,113280.0,0.03514]
[1754149376352,1.391066,113290.0,113280.0,0.03614]
[1754149376808,1.391066,113290.0,113280.0,0.03914]
[1754149377218,1.40488723,113290.0,113280.0,0.03914]
[1754149378303,1.40488723,113290.0,113280.0,0.03814]
[1754149378727,1.40488723,113290.0,113280.0,0.04014]
[1754149379612,1.73285011,113290.0,113280.0,0.04014]
[1754149380054,1.40488723,113290.0,113280.0,0.04014]
[1754149382238,1.40184723,113290.0,113280.0,0.07941829]
[1754149382453,1.40184723,113290.0,113280.0,0.08259829]
[1754149382671,0.49443123,113290.0,113280.0,0.08259829]
[1754149382857,1.40184723,113290.0,113280.0,0.08259829]
[1754149383358,0.49238123,113290.0,113280.0,0.41056117]
[1754149383799,0.35382123,113290.0,113280.0,0.41056117]
[1754149384017,0.34,113290.0,113280.0,0.41056117]
[1754149384232,0.34,113290.0,113280.0,0.37343288]
[1754149384881,0.34,113290.0,113280.0,0.3908819]
[1754149388193,0.35382036,113290.0,113280.0,0.3908819]
[1754149388605,0.51382036,113290.0,113280.0,0.3908819]
[1754149388810,0.51382036,113290.0,113280.0,0.43262489]
[1754149389225,0.51382036,113290.0,113280.0,0.57114489]
[1754149393688,0.5,113290.0,113280.0,0.57114489]
[1754149393933,0.907416,113290.0,113280.0,0.57114489]
[1754149396720,0.13856,113300.0,113280.0,0.57114489]
[1754149396938,0.907416,113290.0,113280.0,0.53604489]
[1754149397603,0.907416,113290.0,113280.0,0.57114489]
[1754149397815,0.907416,113290.0,113280.0,0.56814489]
[1754149398030,0.01382004,113290.0,113280.0,0.56714489]
[1754149398243,0.51382004,113290.0,113280.0,0.56714489]
[1754149398707,0.51382004,113290.0,113280.0,0.57014489]
[1754149398923,0.51382004,113290.0,113280.0,0.56914489]
[1754149399572,0.51382004,113290.0,113280.0,0.57114489]
[1754149400547,1.225702,113290.0,113280.0,0.57114489]
[1754149400745,0.725702,113290.0,113280.0,0.5712137]
[1754149401147,0.725702,113290.0,113280.0,0.10466201]
[1754149401356,0.50201,113290.0,113280.0,0.4295137]
[1754149401731,0.00201,113290.0,113280.0,0.4295137]
[1754149402195,0.01583002,113290.0,113280.0,0.4295137]
[1754149402424,0.51583002,113290.0,113280.0,0.4295137]
[1754149402624,0.01583002,113290.0,113280.0,0.10148201]